fUSD/lending_fUSD_20250225
["ID","MTS","AMOUNT","RATE_DAILY","PERIOD"]
[354472692,1740521468247,-500.0,0.00049863,120]
[354472693,1740521468256,-1149.99,0.00049863,120]
[354472694,1740521468265,-500.0,0.00049863,120]
[354472695,1740521468275,-500.0,0.00049863,120]
[354472696,1740521468284,-524.85,0.00049863,120]
[354472697,1740521468293,-542.88888304,0.00049863,120]
[354472698,1740521468303,-594.99174828,0.00049863,120]
[354472699,1740521468312,-1189.55,0.00049863,120]
[354472700,1740521468322,-510.19,0.00049863,120]
[354472701,1740521468331,-500.0,0.00049863,120]
[354472702,1740521468340,-500.0,0.00049863,120]
[354472703,1740521468354,-705.35,0.00049863,120]
[354472704,1740521468363,-678.38,0.00049863,120]
[354472705,1740521468372,-500.0,0.00049863,120]
[354472706,1740521468381,-500.0,0.00049863,120]
[354472707,1740521468391,-500.0,0.00049863,120]
[354472708,1740521468399,-500.0,0.00049863,120]
[354472709,1740521468409,-500.0,0.00049863,120]
[354472710,1740521468418,-375.86404558,0.00049863,120]
[354472711,1740521468427,-500.0,0.00049863,120]
[354472712,1740521468439,-500.0,0.00049863,120]
[354472713,1740521468448,-500.0,0.00049863,120]
[354472714,1740521468458,-500.0,0.00049863,120]
[354472715,1740521468468,-500.0,0.00049863,120]
[354472716,1740521468477,-572.91,0.00049863,120]
[354472717,1740521468488,-500.0,0.00049863,120]
[354472718,1740521468498,-1095.81,0.00049863,120]
[354472719,1740521468508,-1548.47,0.00049863,120]
[354472720,1740521468518,-284.53861833,0.00049863,120]
[354472721,1740521468528,-500.0,0.00049863,120]
[354472722,1740521468537,-500.0,0.00049863,120]
[354472723,1740521468547,-783.62,0.00049863,120]
[354472724,1740521468556,-500.0,0.00049863,120]
[354472725,1740521468566,-500.0,0.00049863,120]
[354472726,1740521468575,-500.0,0.00049863,120]
[354472727,1740521468584,-1366.93,0.00049863,120]
[354472728,1740521468594,-500.0,0.00049863,120]
[354472729,1740521468603,-305.6139139,0.00049863,120]
[354472730,1740521468613,-660.48,0.00049863,120]
[354472731,1740521468622,-500.0,0.00049863,120]
[354472732,1740521468631,-699.97,0.00049863,120]
[354472733,1740521468640,-500.0,0.00049863,120]
[354472734,1740521468650,-500.0,0.00049863,120]
[354472735,1740521468659,-383.16,0.00049863,120]
[354472736,1740521468668,-500.0,0.00049863,120]
[354472737,1740521468677,-500.0,0.00049863,120]
[354472738,1740521468686,-956.61,0.00049863,120]
[354472739,1740521468695,-704.28,0.00049863,120]
[354472740,1740521468705,-2519.51,0.00049863,120]
[354472741,1740521468714,-1491.15,0.00049863,120]
[354472742,1740521468723,-2093.57,0.00049863,120]
[354472743,1740521468733,-500.0,0.00049863,120]
[354472744,1740521468743,-500.0,0.00049863,120]
[354472745,1740521468752,-1094.49,0.00049863,120]
[354472746,1740521468762,-500.0,0.00049863,120]
[354472747,1740521468772,-500.0,0.00049863,120]
[354472748,1740521468781,-888.52,0.00049863,120]
[354472749,1740521468792,-500.0,0.00049863,120]
[354472750,1740521468801,-500.0,0.00049863,120]
[354472751,1740521468811,-500.0,0.00049863,120]
[354472752,1740521468821,-511.49617369,0.00049863,120]
[354472753,1740521468831,-500.0,0.00049863,120]
[354472754,1740521468840,-584.15,0.00049863,120]
[354472755,1740521468850,-500.0,0.00049863,120]
[354472756,1740521468859,-500.0,0.00049863,120]
[354472757,1740521468870,-500.0,0.00049863,120]
[354472758,1740521468879,-1853.5,0.00049863,120]
[354472759,1740521468889,-500.0,0.00049863,120]
[354472760,1740521468899,-272.56090766,0.00049863,120]
[354472761,1740521468909,-500.0,0.00049863,120]
[354472762,1740521468919,-500.0,0.00049863,120]
[354472763,1740521468931,-500.0,0.00049863,120]
[354472764,1740521468941,-1415.42,0.00049863,120]
[354472765,1740521468951,-500.0,0.00049863,120]
[354472766,1740521468960,-500.0,0.00049863,120]
[354472767,1740521468970,-500.0,0.00049863,120]
[354472768,1740521468979,-500.0,0.00049863,120]
[354472769,1740521468990,-500.0,0.00049863,120]
[354472770,1740521469000,-500.0,0.00049863,120]
[354472771,1740521469009,-500.0,0.00049863,120]
[354472772,1740521469019,-500.0,0.00049863,120]
[354472773,1740521469028,-500.0,0.00049863,120]
[354472774,1740521469038,-500.0,0.00049863,120]
[354472775,1740521469047,-909.39,0.00049863,120]
[354472776,1740521469057,-561.24,0.00049863,120]
[354472777,1740521469066,-1929.16,0.00049863,120]
[354472778,1740521469076,-500.0,0.00049863,120]
[354472779,1740521469086,-500.0,0.00049863,120]
[354472780,1740521469095,-824.63,0.00049863,120]
[354472781,1740521469105,-1391.85,0.00049863,120]
[354472782,1740521469115,-500.0,0.00049863,120]
[354472783,1740521469126,-500.0,0.00049863,120]
[354472784,1740521469136,-500.0,0.00049863,120]
[354472785,1740521469146,-500.0,0.00049863,120]
[354472786,1740521469156,-634.91,0.00049863,120]
[354472787,1740521469167,-500.0,0.00049863,120]
[354472788,1740521469177,-500.0,0.00049863,120]
[354472789,1740521469187,-1081.72,0.00049863,120]
[354472790,1740521469198,-500.0,0.00049863,120]
[354472791,1740521469208,-500.0,0.00049863,120]
[354472792,1740521469220,-326.713879,0.00049863,120]
[354472793,1740521469231,-500.0,0.00049863,120]
[354472794,1740521469246,-500.0,0.00049863,120]
[354472795,1740521469257,-500.0,0.00049863,120]
[354472796,1740521469269,-631.04,0.00049863,120]
[354472797,1740521469280,-500.0,0.00049863,120]
[354472798,1740521469291,-1000.0,0.00049863,60]
[354472799,1740521469302,-478.04,0.00049863,120]
[354472800,1740521469312,-2064.97,0.00049863,120]
[354472801,1740521469323,-500.0,0.00049863,120]
[354472802,1740521469334,-981.07,0.00049863,120]
[354472803,1740521469346,-500.0,0.00049863,120]
[354472804,1740521469357,-500.0,0.00049863,120]
[354472805,1740521469371,-500.0,0.00049863,120]
[354472806,1740521469382,-2075.49,0.00049863,120]
[354472807,1740521469394,-500.0,0.00049863,120]
[354472808,1740521469406,-1195.99,0.00049863,120]
[354472809,1740521469416,-500.0,0.00049863,120]
[354472810,1740521469428,-500.0,0.00049863,2]
[354472811,1740521469440,-3256.16,0.00049863,120]
[354472812,1740521469453,-1136.5,0.00049863,120]
[354472813,1740521469464,-2509.91,0.00049863,120]
[354472814,1740521469475,-500.0,0.00049863,120]
[354472815,1740521469487,-831.96,0.00049863,120]
[354472816,1740521469498,-1014.16,0.00049863,120]
[354472817,1740521469509,-500.0,0.00049863,120]
[354472818,1740521469520,-500.0,0.00049863,120]
[354472819,1740521469530,-500.0,0.00049863,120]
[354472820,1740521469540,-1117.43,0.00049863,120]
[354472821,1740521469550,-500.0,0.00049863,120]
[354472822,1740521469560,-506.29253324,0.00049863,120]
[354472823,1740521469570,-500.0,0.00049863,120]
[354472824,1740521469579,-1375.57,0.00049863,120]
[354472825,1740521469589,-500.0,0.00049863,120]
[354472826,1740521469599,-500.0,0.00049863,120]
[354472827,1740521469609,-500.0,0.00049863,120]
[354472828,1740521469619,-1163.81,0.00049863,120]
[354472829,1740521469628,-500.0,0.00049863,120]
[354472830,1740521469639,-615.64,0.00049863,120]
[354472831,1740521469649,-500.0,0.00049863,120]
[354472832,1740521469659,-500.0,0.00049863,120]
[354472833,1740521469669,-500.0,0.00049863,120]
[354472834,1740521469679,-500.0,0.00049863,120]
[354472835,1740521469688,-500.0,0.00049863,120]
[354472836,1740521469699,-1666.77,0.00049863,120]
[354472837,1740521469708,-719.59,0.00049863,120]
[354472838,1740521469719,-500.0,0.00049863,120]
[354472839,1740521469729,-2353.48,0.00049863,120]
[354472840,1740521469741,-500.0,0.00049863,120]
[354472841,1740521469751,-500.0,0.00049863,120]
[354472842,1740521469761,-500.0,0.00049863,120]
[354472843,1740521469771,-500.0,0.00049863,120]
[354472844,1740521469782,-500.0,0.00049863,120]
[354472845,1740521469792,-500.0,0.00049863,120]
[354472846,1740521469802,-500.0,0.00049863,120]
[354472847,1740521469812,-264.82268668,0.00049863,120]
[354472848,1740521469822,-500.0,0.00049863,120]
[354472849,1740521469832,-500.0,0.00049863,120]
[354472850,1740521469842,-500.0,0.00049863,120]
[354472851,1740521469852,-500.0,0.00049863,120]
[354472852,1740521469862,-877.93,0.00049863,120]
[354472853,1740521469872,-848.48,0.00049863,120]
[354472854,1740521469882,-567.07787054,0.00049863,120]
[354472855,1740521469892,-500.0,0.00049863,120]
[354472856,1740521469902,-500.0,0.00049863,120]
[354472857,1740521469911,-500.0,0.00049863,120]
[354472858,1740521469921,-500.0,0.00049863,120]
[354472859,1740521469932,-500.0,0.00049863,120]
[354472860,1740521469942,-500.0,0.00049863,120]
[354472861,1740521469952,-500.0,0.00049863,120]
[354472862,1740521469962,-500.0,0.00049863,120]
[354472863,1740521469972,-1806.88,0.00049863,120]
[354472864,1740521469984,-500.0,0.00049863,120]
[354472865,1740521469994,-976.5,0.00049863,120]
[354472866,1740521470004,-1451.13,0.00049863,120]
[354472867,1740521470020,-500.0,0.00049863,120]
[354472868,1740521470031,-539.03,0.00049863,120]
[354472869,1740521470041,-587.73,0.00049863,120]
[354472870,1740521470051,-636.83,0.00049863,120]
[354472871,1740521470061,-500.0,0.00049863,120]
[354472872,1740521470073,-507.69877995,0.00049863,120]
[354472873,1740521470082,-218.71660229,0.00049863,120]
[354472874,1740521470092,-1050.9,0.00049863,120]
[354472875,1740521470103,-1153.82,0.00049863,120]
[354472876,1740521470112,-500.0,0.00049863,120]
[354472877,1740521470122,-500.0,0.00049863,120]
[354472878,1740521470132,-1596.29,0.00049863,120]
[354472879,1740521470142,-500.0,0.00049863,120]
[354472880,1740521470152,-500.0,0.00049863,120]
[354472881,1740521470163,-500.0,0.00049863,120]
[354472882,1740521470172,-500.0,0.00049863,120]
[354472883,1740521470182,-500.0,0.00049863,120]
[354472884,1740521470191,-500.0,0.00049863,120]
[354472885,1740521470201,-500.0,0.00049863,120]
[354472886,1740521470211,-1595.44,0.00049863,30]
[354472887,1740521470221,-500.0,0.00049863,120]
[354472888,1740521470231,-764.33,0.00049863,120]
[354472889,1740521470242,-500.0,0.00049863,120]
[354472890,1740521470252,-500.0,0.00049863,120]
[354472891,1740521470262,-500.0,0.00049863,120]
[354472892,1740521470272,-500.0,0.00049863,120]
[354472893,1740521470282,-500.0,0.00049863,120]
[354472894,1740521470292,-1145.81,0.00049863,120]
[354472895,1740521470301,-500.0,0.00049863,120]
[354472896,1740521470311,-500.0,0.00049863,120]
[354472897,1740521470321,-500.0,0.00049863,120]
[354472898,1740521470331,-1260.81,0.00049863,120]
[354472899,1740521470341,-500.0,0.00049863,120]
[354472900,1740521470353,-405.11219952,0.00049863,120]
[354472901,1740521470363,-539.75,0.00049863,120]
[354472902,1740521470375,-500.0,0.00049863,120]
[354472903,1740521470385,-3278.23,0.00049863,120]
[354472904,1740521470396,-500.0,0.00049863,120]
[354472905,1740521470406,-2012.74,0.00049863,120]
[354472906,1740521470416,-569.82,0.00049863,120]
[354472907,1740521470426,-500.0,0.00049863,120]
[354472908,1740521470436,-500.0,0.00049863,120]
[354472909,1740521470446,-500.0,0.00049863,120]
[354472910,1740521470456,-1185.82,0.00049863,120]
[354472911,1740521470466,-500.0,0.00049863,120]
[354472912,1740521470475,-552.66984909,0.00049863,120]
[354472913,1740521470487,-500.0,0.00049863,120]
[354472914,1740521470497,-500.0,0.00049863,120]
[354472915,1740521470506,-500.0,0.00049863,120]
[354472916,1740521470516,-500.0,0.00049863,120]
[354472917,1740521470525,-1435.94,0.00049863,120]
[354472918,1740521470535,-500.0,0.00049863,120]
[354472919,1740521470545,-1000.0,0.00049863,45]
[354472920,1740521470555,-500.0,0.00049863,120]
[354472921,1740521470566,-500.0,0.00049863,30]
[354472922,1740521470576,-500.0,0.00049863,120]
[354472923,1740521470586,-925.14,0.00049863,120]
[354472924,1740521470596,-500.0,0.00049863,120]
[354472925,1740521470605,-500.0,0.00049863,120]
[354472926,1740521470616,-500.0,0.00049863,120]
[354472927,1740521470626,-566.75,0.00049863,120]
[354472928,1740521470637,-1561.46,0.00049863,120]
[354472929,1740521470647,-500.0,0.00049863,120]
[354472930,1740521470657,-500.0,0.00049863,120]
[354472931,1740521470667,-1075.02,0.00049863,120]
[354472932,1740521470677,-500.0,0.00049863,120]
[354472933,1740521470687,-534.47,0.00049863,120]
[354472934,1740521470697,-500.0,0.00049863,120]
[354472935,1740521470707,-500.0,0.00049863,120]
[354472936,1740521470717,-2426.94,0.00049863,120]
[354472937,1740521470727,-500.0,0.00049863,120]
[354472938,1740521470738,-500.0,0.00049863,120]
[354472939,1740521470748,-1296.86,0.00049863,120]
[354472940,1740521470758,-859.75,0.00049863,120]
[354472941,1740521470768,-500.0,0.00049863,120]
[354472942,1740521470778,-500.0,0.00049863,120]
[354472943,1740521470787,-500.0,0.00049863,120]
[354472944,1740521470798,-598.74,0.00049863,120]
[354472945,1740521470808,-500.0,0.00049863,120]
[354472946,1740521470818,-1388.24,0.00049863,120]
[354472947,1740521470828,-500.0,0.00049863,120]
[354472948,1740521470838,-500.0,0.00049863,120]
[354472949,1740521470848,-500.0,0.00049863,120]
[354472950,1740521470859,-500.0,0.00049863,120]
[354472951,1740521470869,-688.03,0.00049863,120]
[354472952,1740521470879,-500.0,0.00049863,120]
[354472953,1740521470890,-500.0,0.00049863,120]
[354472954,1740521470899,-552.59452294,0.00049863,120]
[354472955,1740521470909,-500.0,0.00049863,120]
[354472956,1740521470920,-500.0,0.00049863,120]
[354472957,1740521470929,-668.38,0.00049863,120]
[354472958,1740521470940,-515.89962153,0.00049863,120]
[354472959,1740521470950,-500.0,0.00049863,120]
[354472960,1740521471221,-500.0,0.00049863,120]
[354472961,1740521471231,-500.0,0.00049863,120]
[354472962,1740521471242,-500.0,0.00049863,120]
[354472963,1740521471251,-500.0,0.00049863,120]
[354472964,1740521471261,-471.29400488,0.00049863,120]
[354472965,1740521471270,-2011.58,0.00049863,120]
[354472966,1740521471279,-512.93,0.00049863,120]
[354472967,1740521471288,-1112.04,0.00049863,120]
[354472968,1740521471298,-500.0,0.00049863,120]
[354472969,1740521471308,-500.0,0.00049863,120]
[354472970,1740521471317,-500.0,0.00049863,120]
[354472971,1740521471327,-500.0,0.00049863,120]
[354472972,1740521471336,-554.57,0.00049863,120]
[354472973,1740521471347,-500.0,0.00049863,120]
[354472974,1740521471359,-500.0,0.00049863,120]
[354472975,1740521471369,-500.0,0.00049863,120]
[354472976,1740521471378,-500.0,0.00049863,120]
[354472977,1740521471391,-500.0,0.00049863,120]
[354472978,1740521471401,-500.0,0.00049863,120]
[354472979,1740521471410,-500.0,0.00049863,120]
[354472980,1740521471420,-500.0,0.00049863,120]
[354472981,1740521471429,-500.0,0.00049863,120]
[354472982,1740521471439,-500.0,0.00049863,120]
[354472983,1740521471449,-630.91,0.00049863,120]
[354472984,1740521471459,-500.0,0.00049863,120]
[354472985,1740521471469,-500.0,0.00049863,120]
[354472986,1740521471478,-500.0,0.00049863,120]
[354472987,1740521471488,-500.0,0.00049863,120]
[354472988,1740521471498,-706.25,0.00049863,120]
[354472989,1740521471507,-768.87,0.00049863,120]
[354472990,1740521471517,-500.0,0.00049863,120]
[354472991,1740521471527,-582.32,0.00049863,120]
[354472992,1740521471536,-500.0,0.00049863,120]
[354472993,1740521471545,-500.0,0.00049863,120]
[354472994,1740521471555,-1792.37,0.00049863,120]
[354472995,1740521471564,-590.88500543,0.00049863,120]
[354472996,1740521471573,-1356.63,0.00049863,120]
[354472997,1740521471583,-639.81,0.00049863,120]
[354472998,1740521471592,-500.0,0.00049863,120]
[354472999,1740521471601,-552.42,0.00049863,120]
[354473000,1740521471611,-500.0,0.00049863,120]
[354473001,1740521471620,-500.0,0.00049863,120]
[354473002,1740521471630,-1376.23,0.00049863,120]
[354473003,1740521471639,-556.6,0.00049863,120]
[354473004,1740521471649,-500.0,0.00049863,120]
[354473005,1740521471658,-500.0,0.00049863,120]
[354473006,1740521471668,-1696.67,0.00049863,120]
[354473007,1740521471677,-284.95228732,0.00049863,120]
[354473008,1740521471686,-526.66960013,0.00049863,120]
[354473009,1740521471696,-500.0,0.00049863,120]
[354473010,1740521471705,-701.01,0.00049863,120]
[354473011,1740521471715,-500.0,0.00049863,120]
[354473012,1740521471724,-500.0,0.00049863,120]
[354473013,1740521471734,-500.0,0.00049863,120]
[354473014,1740521471744,-505.52,0.00049863,120]
[354473015,1740521471754,-500.0,0.00049863,120]
[354473016,1740521471764,-500.0,0.00049863,120]
[354473017,1740521471774,-500.0,0.00049863,120]
[354473018,1740521471784,-1194.4,0.00049863,120]
[354473019,1740521471794,-894.25,0.00049863,120]
[354473020,1740521471803,-557.4,0.00049863,120]
[354473021,1740521471813,-500.0,0.00049863,120]
[354473022,1740521471823,-500.0,0.00049863,120]
[354473023,1740521471832,-500.0,0.00049863,120]
[354473024,1740521471842,-730.13,0.00049863,120]
[354473025,1740521471852,-500.0,0.00049863,120]
[354473026,1740521471862,-1308.9,0.00049863,120]
[354473027,1740521471872,-500.0,0.00049863,120]
[354473028,1740521471881,-500.0,0.00049863,120]
[354473029,1740521471891,-500.0,0.00049863,120]
[354473030,1740521471901,-1942.76,0.00049863,120]
[354473031,1740521471910,-500.0,0.00049863,120]
[354473032,1740521471920,-1214.68,0.00049863,120]
[354473033,1740521471930,-500.0,0.00049863,120]
[354473034,1740521471940,-1395.7,0.00049863,120]
[354473035,1740521471951,-500.0,0.00049863,120]
[354473036,1740521471961,-941.7,0.00049863,120]
[354473037,1740521471971,-500.0,0.00049863,120]
[354473038,1740521471982,-1317.96,0.00049863,120]
[354473039,1740521471993,-3795.92,0.00049863,120]
[354473040,1740521472003,-500.0,0.00049863,120]
[354473041,1740521472013,-500.0,0.00049863,120]
[354473042,1740521472023,-500.0,0.00049863,120]
[354473043,1740521472041,-500.0,0.00049863,120]
[354473044,1740521472050,-500.0,0.00049863,120]
[354473045,1740521472060,-500.0,0.00049863,120]
[354473046,1740521472069,-500.0,0.00049863,120]
[354473047,1740521472079,-1033.8,0.00049863,120]
[354473048,1740521472089,-500.0,0.00049863,120]
[354473049,1740521472099,-500.0,0.00049863,120]
[354473050,1740521472108,-500.0,0.00049863,120]
[354473051,1740521472118,-844.45,0.00049863,120]
[354473052,1740521472127,-500.0,0.00049863,120]
[354473053,1740521472138,-1173.29,0.00049863,120]
[354473054,1740521472147,-500.0,0.00049863,120]
[354473055,1740521472157,-500.0,0.00049863,120]
[354473056,1740521472167,-1289.66,0.00049863,120]
[354473057,1740521472177,-804.37,0.00049863,120]
[354473058,1740521472186,-701.48,0.00049863,120]
[354473059,1740521472197,-1776.95,0.00049863,120]
[354473060,1740521472206,-500.0,0.00049863,120]
[354473061,1740521472215,-500.0,0.00049863,120]
[354473062,1740521472225,-1826.6,0.00049863,120]
[354473063,1740521472236,-500.0,0.00049863,120]
[354473064,1740521472245,-500.0,0.00049863,120]
[354473065,1740521472256,-797.69,0.00049863,120]
[354473066,1740521472266,-500.0,0.00049863,120]
[354473067,1740521472276,-500.0,0.00049863,120]
[354473068,1740521472287,-500.0,0.00049863,120]
[354473069,1740521472297,-500.0,0.00049863,120]
[354473070,1740521472308,-500.0,0.00049863,120]
[354473071,1740521472318,-1794.55,0.00049863,120]
[354473072,1740521472328,-500.0,0.00049863,120]
[354473073,1740521472339,-500.0,0.00049863,120]
[354473074,1740521472349,-939.88,0.00049863,120]
[354473075,1740521472359,-500.0,0.00049863,120]
[354473076,1740521472370,-500.0,0.00049863,120]
[354473077,1740521472381,-500.0,0.00049863,120]
[354473078,1740521472391,-500.0,0.00049863,120]
[354473079,1740521472402,-1351.79,0.00049863,120]
[354473080,1740521472413,-806.9,0.00049863,120]
[354473081,1740521472422,-500.0,0.00049863,120]
[354473082,1740521472432,-500.0,0.00049863,120]
[354473083,1740521472442,-1413.46,0.00049863,120]
[354473084,1740521472456,-2000.0,0.00049863,30]
[354473085,1740521472466,-500.0,0.00049863,120]
[354473086,1740521472476,-500.0,0.00049863,120]
[354473087,1740521472487,-500.0,0.00049863,120]
[354473088,1740521472497,-500.0,0.00049863,120]
[354473089,1740521472507,-500.0,0.00049863,120]
[354473090,1740521472516,-1318.45,0.00049863,120]
[354473091,1740521472526,-500.0,0.00049863,120]
[354473092,1740521472535,-1736.14,0.00049863,120]
[354473093,1740521472545,-488.48310354,0.00049863,120]
[354473094,1740521472554,-1833.5,0.00049863,120]
[354473095,1740521472564,-1233.88,0.00049863,120]
[354473096,1740521472573,-500.0,0.00049863,120]
[354473097,1740521472584,-500.0,0.00049863,120]
[354473098,1740521472594,-404.43,0.00049863,7]
[354473099,1740521472604,-500.0,0.00049863,120]
[354473100,1740521472613,-500.0,0.00049863,120]
[354473101,1740521472623,-500.0,0.00049863,120]
[354473102,1740521472632,-1080.2,0.00049863,120]
[354473103,1740521472642,-681.94,0.00049863,120]
[354473104,1740521472651,-500.0,0.00049863,120]
[354473105,1740521472660,-1381.85,0.00049863,120]
[354473106,1740521472670,-500.0,0.00049863,120]
[354473107,1740521472680,-500.0,0.00049863,120]
[354473108,1740521472690,-538.64,0.00049863,120]
[354473109,1740521472700,-500.0,0.00049863,120]
[354473110,1740521472710,-500.0,0.00049863,120]
[354473111,1740521472721,-500.0,0.00049863,120]
[354473112,1740521472730,-500.0,0.00049863,120]
[354473113,1740521472742,-2360.8,0.00049863,120]
[354473114,1740521472751,-500.0,0.00049863,120]
[354473115,1740521472761,-677.84,0.00049863,120]
[354473116,1740521472772,-500.0,0.00049863,120]
[354473117,1740521472781,-500.0,0.00049863,120]
[354473118,1740521472791,-590.24,0.00049863,120]
[354473119,1740521472801,-558.68,0.00049863,120]
[354473120,1740521472810,-500.0,0.00049863,120]
[354473121,1740521472820,-500.0,0.00049863,120]
[354473122,1740521472830,-500.0,0.00049863,120]
[354473123,1740521472839,-500.0,0.00049863,120]
[354473124,1740521472849,-500.0,0.00049863,120]
[354473125,1740521472859,-500.0,0.00049863,120]
[354473126,1740521472869,-500.0,0.00049863,120]
[354473127,1740521472878,-2707.25,0.00049863,120]
[354473128,1740521472888,-500.0,0.00049863,120]
[354473129,1740521472898,-628.18,0.00049863,120]
[354473130,1740521472908,-500.0,0.00049863,120]
[354473131,1740521472918,-500.0,0.00049863,120]
[354473132,1740521472927,-500.0,0.00049863,120]
[354473133,1740521472936,-1713.74,0.00049863,120]
[354473134,1740521472946,-1148.76,0.00049863,120]
[354473135,1740521472955,-881.97,0.00049863,120]
[354473136,1740521472970,-1134.19,0.00049863,120]
[354473137,1740521472991,-500.0,0.00049863,120]
[354473138,1740521473004,-928.47,0.00049863,120]
[354473139,1740521473014,-500.0,0.00049863,120]
[354473140,1740521473024,-500.0,0.00049863,120]
[354473141,1740521473033,-500.0,0.00049863,120]
[354473142,1740521473044,-500.0,0.00049863,120]
[354473143,1740521473054,-500.0,0.00049863,120]
[354473144,1740521473064,-500.0,0.00049863,120]
[354473145,1740521473074,-1473.7,0.00049863,120]
[354473146,1740521473084,-1331.35,0.00049863,120]
[354473147,1740521473093,-500.0,0.00049863,120]
[354473148,1740521473104,-500.0,0.00049863,28]
[354473149,1740521473114,-626.47,0.00049863,120]
[354473150,1740521473124,-500.0,0.00049863,120]
[354473151,1740521473134,-500.0,0.00049863,120]
[354473152,1740521473144,-500.0,0.00049863,120]
[354473153,1740521473154,-684.5,0.00049863,120]
[354473154,1740521473164,-500.0,0.00049863,120]
[354473155,1740521473174,-500.0,0.00049863,120]
[354473156,1740521473187,-1195.84,0.00049863,120]
[354473157,1740521473199,-500.0,0.00049863,120]
[354473158,1740521473208,-1191.34,0.00049863,120]
[354473159,1740521473218,-500.0,0.00049863,120]
[354473160,1740521473228,-500.0,0.00049863,120]
[354473161,1740521473239,-2161.31,0.00049863,120]
[354473162,1740521473249,-843.88,0.00049863,120]
[354473163,1740521473259,-500.0,0.00049863,120]
[354473164,1740521473270,-500.0,0.00049863,120]
[354473165,1740521473280,-1372.02,0.00049863,120]
[354473166,1740521473289,-500.0,0.00049863,120]
[354473167,1740521473299,-1709.46,0.00049863,120]
[354473168,1740521473308,-964.11,0.00049863,120]
[354473169,1740521473318,-500.0,0.00049863,120]
[354473170,1740521473327,-500.0,0.00049863,120]
[354473171,1740521473336,-934.82,0.00049863,120]
[354473172,1740521473345,-909.48,0.00049863,120]
[354473173,1740521473358,-653.96,0.00049863,120]
[354473174,1740521473369,-500.0,0.00049863,120]
[354473175,1740521473378,-500.0,0.00049863,120]
[354473176,1740521473387,-500.0,0.00049863,120]
[354473177,1740521473398,-850.55,0.00049863,120]
[354473178,1740521473407,-1201.17,0.00049863,120]
[354473179,1740521473417,-631.67,0.00049863,120]
[354473180,1740521473426,-2420.22,0.00049863,120]
[354473181,1740521473436,-1482.88,0.00049863,120]
[354473182,1740521473446,-386.96310955,0.00049863,120]
[354473183,1740521473455,-500.0,0.00049863,120]
[354473184,1740521473464,-1412.08,0.00049863,120]
[354473185,1740521473473,-500.0,0.00049863,120]
[354473186,1740521473482,-730.48,0.00049863,120]
[354473187,1740521473496,-500.0,0.00049863,120]
[354473188,1740521473505,-500.0,0.00049863,120]
[354473189,1740521473514,-500.0,0.00049863,120]
[354473190,1740521473523,-989.94,0.00049863,120]
[354473191,1740521473533,-1649.2,0.00049863,120]